fUST/lending_fUST_20250207
["ID","MTS","AMOUNT","RATE_DAILY","PERIOD"]
[351963102,1738863038578,-500.0,0.00013835,2]
[351963104,1738863038588,-1084.01,0.00013835,2]
[351963106,1738863038600,-1859.33,0.00013835,2]
[351963108,1738863038609,-950.49,0.00013835,2]
[351963110,1738863038619,-500.0,0.00013835,2]
[351963112,1738863038628,-509.54,0.00013835,2]
[351963114,1738863038639,-500.0,0.00013835,2]
[351963116,1738863038650,-598.73,0.00013835,2]
[351963118,1738863038659,-551.86,0.00013835,2]
[351963120,1738863038669,-213.16247813,0.000139,2]
[351963122,1738863038679,-486.07621659,0.00013971,2]
[351963125,1738863038689,-500.0,0.00013972,2]
[351963127,1738863038699,-500.0,0.00013972,2]
[351963128,1738863038708,-500.0,0.00013972,2]
[351963131,1738863038718,-528.47,0.00013972,2]
[351963132,1738863038728,-336.55939447,0.00013972,2]
[351963134,1738863038738,-500.0,0.00013972,2]
[351963136,1738863038747,-500.0,0.00013972,2]
[351963139,1738863038757,-407.35,0.00013972,2]
[351963140,1738863038767,-877.41,0.00013972,2]
[351963143,1738863038776,-500.0,0.00013972,2]
[351963144,1738863038785,-898.96,0.00013972,2]
[351963147,1738863038795,-500.0,0.00013972,2]
[351963149,1738863038804,-500.0,0.00013972,2]
[351963151,1738863038814,-647.28,0.00013972,2]
[351963153,1738863038823,-663.48,0.00013972,2]
[351963155,1738863038832,-500.0,0.00013972,2]
[351963157,1738863038841,-791.92,0.00013972,2]
[351963159,1738863038853,-500.0,0.00013972,2]
[351963161,1738863038863,-500.0,0.00013972,2]
[351963163,1738863038872,-500.0,0.00013972,2]
[351963165,1738863038882,-742.36,0.00013972,2]
[351963167,1738863038891,-500.0,0.00013972,2]
[351963169,1738863038900,-500.0,0.00013972,2]
[351963171,1738863038910,-566.36,0.00013972,2]
[351963173,1738863038919,-613.76,0.00013972,2]
[351963175,1738863038929,-500.0,0.00013972,2]
[351963177,1738863038938,-739.92,0.00013972,2]
[351963179,1738863038948,-500.0,0.00013972,2]
[351963181,1738863038958,-500.0,0.00013972,2]
[351963183,1738863038968,-500.0,0.00013972,2]
[351963185,1738863038978,-500.0,0.00013972,2]
[351963187,1738863038987,-2422.75,0.00013972,2]
[351963189,1738863038997,-955.76,0.00013972,2]
[351963191,1738863039006,-500.0,0.00013972,2]
[351963193,1738863039015,-500.0,0.00013972,2]
[351963195,1738863039025,-500.0,0.00013972,2]
[351963197,1738863039034,-1054.88,0.00013972,2]
[351963199,1738863039043,-817.99,0.00013972,2]
[351963201,1738863039053,-655.53,0.00013972,2]
[351963203,1738863039062,-771.4,0.00013972,2]
[351963205,1738863039071,-1804.12,0.00013972,2]
[351963207,1738863039082,-21482.17,0.00013972,2]
[351963209,1738863039092,-500.0,0.00013972,2]
[351963211,1738863039107,-5240.91,0.00013972,2]
[351963213,1738863039118,-612.43,0.00013972,2]
[351963215,1738863039128,-500.0,0.00013972,2]
[351963217,1738863039138,-9856.07,0.00013972,2]
[351963219,1738863039148,-1478.97,0.00013972,2]
[351963221,1738863039158,-500.0,0.00013972,2]
[351963223,1738863039168,-500.0,0.00013972,2]
[351963225,1738863039178,-500.0,0.00013972,2]
[351963227,1738863039188,-3672.47,0.00013972,2]
[351963229,1738863039198,-706.42,0.00013972,2]
[351963231,1738863039208,-808.38,0.00013972,2]
[351963233,1738863039218,-882.93,0.00013972,2]
[351963236,1738863039228,-500.0,0.00013972,2]
[351963238,1738863039238,-826.05,0.00013972,2]
[351963240,1738863039249,-2510.24,0.00013972,2]
[351963241,1738863039258,-500.0,0.00013972,2]
[351963244,1738863039268,-812.01,0.00013972,2]
[351963246,1738863039278,-1309.81,0.00013972,2]
[351963248,1738863039288,-1253.59,0.00013972,2]
[351963250,1738863039298,-525.45,0.00013972,2]
[351963256,1738863039341,-500.0,0.00013972,2]
[351963258,1738863039355,-10377.83,0.00013972,2]
[351963260,1738863039364,-993.93,0.00013972,2]
[351963262,1738863039373,-500.0,0.00013972,2]
[351963263,1738863039382,-623.05,0.00013972,2]
[351963265,1738863039391,-1314.31,0.00013972,2]
[351963268,1738863039401,-913.66,0.00013972,2]
[351963270,1738863039411,-361.38402979,0.00013972,2]
[351963272,1738863039420,-500.0,0.00013972,2]
[351963274,1738863039431,-1840.78,0.00013972,2]
[351963276,1738863039441,-500.0,0.00013972,2]
[351963278,1738863039451,-500.0,0.00013972,2]
[351963280,1738863039459,-5198.05,0.00013972,2]
[351963282,1738863039469,-2153.02,0.00013972,2]
[351963284,1738863039478,-500.0,0.00013972,2]
[351963286,1738863039487,-1240.76,0.00013972,2]
[351963288,1738863039497,-2070.89,0.00013972,2]
[351963290,1738863039506,-706.29,0.00013972,2]
[351963292,1738863039515,-500.0,0.00013972,2]
[351963294,1738863039525,-1084.01,0.00013972,2]
[351963296,1738863039534,-1859.33,0.00013972,2]
[351963298,1738863039543,-950.49,0.00013972,2]
[351963300,1738863039552,-500.0,0.00013972,2]
[351963302,1738863039561,-509.54,0.00013972,2]
[351963304,1738863039570,-500.0,0.00013972,2]
[351963306,1738863039579,-551.86,0.00013972,2]
[351963308,1738863039589,-598.73,0.00013972,2]
[351963309,1738863039599,-1496.0,0.00013973,8]
[351963310,1738863039608,-400.0,0.00013973,2]
[351963311,1738863039617,-4686.88813011,0.00014,2]
[351963312,1738863039627,-332.14263852,0.00014044,2]
[351963313,1738863039637,-13262.49839917,0.00014078,2]
[351963314,1738863039648,-500.0,0.00014109,2]
[351963315,1738863039659,-500.0,0.00014109,2]
[351963316,1738863039668,-500.0,0.00014109,2]
[351963317,1738863039677,-528.47,0.00014109,2]
[351963318,1738863039687,-500.0,0.00014109,2]
[351963319,1738863039698,-500.0,0.00014109,2]
[351963320,1738863039707,-877.41,0.00014109,2]
[351963321,1738863039717,-500.0,0.00014109,2]
[351963322,1738863039729,-898.96,0.00014109,2]
[351963323,1738863039739,-500.0,0.00014109,2]
[351963324,1738863039749,-500.0,0.00014109,2]
[351963325,1738863039759,-647.28,0.00014109,2]
[351963326,1738863039769,-663.48,0.00014109,2]
[351963327,1738863039779,-500.0,0.00014109,2]
[351963328,1738863039789,-791.92,0.00014109,2]
[351963330,1738863039799,-500.0,0.00014109,2]
[351963332,1738863039809,-500.0,0.00014109,2]
[351963334,1738863039819,-500.0,0.00014109,2]
[351963336,1738863039829,-742.36,0.00014109,2]
[351963338,1738863039838,-500.0,0.00014109,2]
[351963340,1738863039850,-500.0,0.00014109,2]
[351963342,1738863039859,-566.36,0.00014109,2]
[351963344,1738863039870,-613.76,0.00014109,2]
[351963346,1738863039880,-500.0,0.00014109,2]
[351963348,1738863039891,-739.92,0.00014109,2]
[351963350,1738863039901,-500.0,0.00014109,2]
[351963352,1738863039911,-500.0,0.00014109,2]
[351963354,1738863039921,-500.0,0.00014109,2]
[351963356,1738863039931,-500.0,0.00014109,2]
[351963358,1738863039941,-2422.75,0.00014109,2]
[351963360,1738863039951,-955.76,0.00014109,2]
[351963362,1738863039961,-500.0,0.00014109,2]
[351963364,1738863039970,-500.0,0.00014109,2]
[351963366,1738863039980,-500.0,0.00014109,2]
[351963368,1738863039990,-1054.88,0.00014109,2]
[351963370,1738863039999,-817.99,0.00014109,2]
[351963371,1738863040008,-655.53,0.00014109,2]
[351963373,1738863040018,-771.4,0.00014109,2]
[351963375,1738863040028,-1804.12,0.00014109,2]
[351963377,1738863040038,-21482.17,0.00014109,2]
[351963380,1738863040048,-500.0,0.00014109,2]
[351963381,1738863040057,-5240.91,0.00014109,2]
[351963383,1738863040067,-612.43,0.00014109,2]
[351963385,1738863040077,-500.0,0.00014109,2]
[351963387,1738863040087,-9856.07,0.00014109,2]
[351963389,1738863040099,-1478.97,0.00014109,2]
[351963392,1738863040109,-500.0,0.00014109,2]
[351963394,1738863040118,-500.0,0.00014109,2]
[351963395,1738863040128,-500.0,0.00014109,2]
[351963397,1738863040138,-3672.47,0.00014109,2]
[351963399,1738863040148,-706.42,0.00014109,2]
[351963401,1738863040157,-808.38,0.00014109,2]
[351963403,1738863040167,-882.93,0.00014109,2]
[351963405,1738863040177,-500.0,0.00014109,2]
[351963407,1738863040187,-826.05,0.00014109,2]
[351963409,1738863040196,-2510.24,0.00014109,2]
[351963411,1738863040206,-500.0,0.00014109,2]
[351963413,1738863040216,-812.01,0.00014109,2]
[351963415,1738863040227,-1309.81,0.00014109,2]
[351963417,1738863040237,-1253.59,0.00014109,2]
[351963419,1738863040247,-525.45,0.00014109,2]
[351963421,1738863040256,-500.0,0.00014109,2]
[351963423,1738863040266,-10377.83,0.00014109,2]
[351963425,1738863040276,-993.93,0.00014109,2]
[351963427,1738863040286,-500.0,0.00014109,2]
[351963429,1738863040295,-623.05,0.00014109,2]
[351963431,1738863040304,-1314.31,0.00014109,2]
[351963433,1738863040316,-913.66,0.00014109,2]
[351963435,1738863040326,-500.0,0.00014109,2]
[351963437,1738863040336,-1840.78,0.00014109,2]
[351963439,1738863040351,-500.0,0.00014109,2]
[351963441,1738863040360,-500.0,0.00014109,2]
[351963443,1738863040370,-5198.05,0.00014109,2]
[351963445,1738863040380,-2153.02,0.00014109,2]
[351963447,1738863040390,-500.0,0.00014109,2]
[351963449,1738863040400,-1240.76,0.00014109,2]
[351963451,1738863040411,-2070.89,0.00014109,2]
[351963453,1738863040420,-706.29,0.00014109,2]
[351963455,1738863040430,-500.0,0.00014109,2]
[351963457,1738863040440,-1084.01,0.00014109,2]
[351963459,1738863040450,-1859.33,0.00014109,2]
[351963461,1738863040459,-950.49,0.00014109,2]
[351963463,1738863040469,-500.0,0.00014109,2]
[351963465,1738863040479,-509.54,0.00014109,2]
[351963467,1738863040488,-500.0,0.00014109,2]
[351963469,1738863040498,-551.86,0.00014109,2]
[351963471,1738863040508,-598.73,0.00014109,2]
[351963473,1738863040518,-286.718,0.00014152,2]
[351963475,1738863040528,-150.0,0.00014245,2]
[351963477,1738863040537,-1975.0,0.00014245,2]
[351963479,1738863040548,-537.0,0.00014245,2]
[351963482,1738863040561,-2297.0,0.00014245,2]
[351963484,1738863040572,-500.0,0.00014246,2]
[351963485,1738863040582,-500.0,0.00014246,2]
[351963488,1738863040592,-500.0,0.00014246,2]
[351963489,1738863040606,-528.47,0.00014246,2]
[351963492,1738863040617,-500.0,0.00014246,2]
[351963494,1738863040627,-500.0,0.00014246,2]
[351963496,1738863040639,-877.41,0.00014246,2]
[351963497,1738863040650,-500.0,0.00014246,2]
[351963499,1738863040661,-898.96,0.00014246,2]
[351963501,1738863040671,-500.0,0.00014246,2]
[351963503,1738863040682,-500.0,0.00014246,2]
[351963506,1738863040692,-647.28,0.00014246,2]
[351963507,1738863040702,-500.0,0.00014246,2]
[351963509,1738863040712,-791.92,0.00014246,2]
[351963511,1738863040723,-500.0,0.00014246,2]
[351963514,1738863040734,-500.0,0.00014246,2]
[351963516,1738863040744,-583.13077782,0.00014246,2]
[351963518,1738863040754,-742.36,0.00014246,2]
[351963519,1738863040764,-500.0,0.00014246,2]
[351963521,1738863040774,-500.0,0.00014246,2]
[351963523,1738863040785,-566.36,0.00014246,2]
[351963526,1738863040795,-613.76,0.00014246,2]
[351963528,1738863040805,-500.0,0.00014246,2]
[351963530,1738863040816,-739.92,0.00014246,2]
[351963531,1738863040826,-500.0,0.00014246,2]
[351963533,1738863040836,-500.0,0.00014246,2]
[351963536,1738863040846,-500.0,0.00014246,2]
[351963538,1738863040860,-500.0,0.00014246,2]
[351963540,1738863040870,-2422.75,0.00014246,2]
[351963542,1738863040880,-955.76,0.00014246,2]
[351963543,1738863040890,-500.0,0.00014246,2]
[351963545,1738863040900,-500.0,0.00014246,2]
[351963548,1738863040910,-500.0,0.00014246,2]
[351963550,1738863040920,-1054.88,0.00014246,2]
[351963551,1738863040931,-817.99,0.00014246,2]
[351963553,1738863040941,-655.53,0.00014246,2]
[351963555,1738863040951,-771.4,0.00014246,2]
[351963557,1738863040961,-1804.12,0.00014246,2]
[351963560,1738863040973,-21482.17,0.00014246,2]
[351963562,1738863040983,-500.0,0.00014246,2]
[351963564,1738863040993,-5240.91,0.00014246,2]
[351963566,1738863041003,-612.43,0.00014246,2]
[351963567,1738863041014,-500.0,0.00014246,2]
[351963570,1738863041025,-1478.97,0.00014246,2]
[351963572,1738863041035,-9856.07,0.00014246,2]
[351963574,1738863041045,-500.0,0.00014246,2]
[351963576,1738863041056,-500.0,0.00014246,2]
[351963577,1738863041066,-500.0,0.00014246,2]
[351963580,1738863041076,-3672.47,0.00014246,2]
[351963582,1738863041085,-706.42,0.00014246,2]
[351963584,1738863041095,-808.38,0.00014246,2]
[351963585,1738863041110,-882.93,0.00014246,2]
[351963587,1738863041120,-500.0,0.00014246,2]
[351963589,1738863041129,-826.05,0.00014246,2]
[351963592,1738863041140,-2510.24,0.00014246,2]
[351963594,1738863041149,-500.0,0.00014246,2]
[351963596,1738863041160,-812.01,0.00014246,2]
[351963597,1738863041169,-1309.81,0.00014246,2]
[351963600,1738863041179,-466.34887664,0.00014246,2]
[351963627,1738863041450,-500.0,0.00013698,2]
[351963630,1738863041461,-787.24112336,0.00014246,2]
[351963631,1738863041471,-525.45,0.00014246,2]
[351963634,1738863041480,-500.0,0.00014246,2]
[351963636,1738863041490,-10377.83,0.00014246,2]
[351963638,1738863041500,-993.93,0.00014246,2]
[351963640,1738863041510,-500.0,0.00014246,2]
[351963642,1738863041520,-623.05,0.00014246,2]
[351963644,1738863041530,-1314.31,0.00014246,2]
[351963646,1738863041540,-913.66,0.00014246,2]
[351963648,1738863041549,-500.0,0.00014246,2]
[351963650,1738863041559,-1840.78,0.00014246,2]
[351963652,1738863041569,-500.0,0.00014246,2]
[351963654,1738863041578,-500.0,0.00014246,2]
[351963656,1738863041588,-5198.05,0.00014246,2]
[351963658,1738863041597,-2153.02,0.00014246,2]
[351963660,1738863041608,-500.0,0.00014246,2]
[351963662,1738863041618,-1240.76,0.00014246,2]
[351963664,1738863041627,-2070.89,0.00014246,2]
[351963666,1738863041637,-706.29,0.00014246,2]
[351963668,1738863041647,-500.0,0.00014246,2]
[351963670,1738863041660,-1084.01,0.00014246,2]
[351963672,1738863041670,-1859.33,0.00014246,2]
[351963674,1738863041679,-950.49,0.00014246,2]
[351963676,1738863041691,-500.0,0.00014246,2]
[351963678,1738863041706,-509.54,0.00014246,2]
[351963680,1738863041715,-500.0,0.00014246,2]
[351963683,1738863041725,-551.86,0.00014246,2]
[351963685,1738863041735,-598.73,0.00014246,2]
[351963687,1738863041745,-251.1389985,0.00014246,2]
[351963689,1738863041755,-306.0,0.00014247,2]
[351963691,1738863041765,-500.0,0.00014274,2]
[351963693,1738863041775,-2331.63,0.000143,2]
[351963695,1738863041785,-769.65789963,0.00014334,2]
[351963697,1738863041795,-151.0,0.00014382,2]
[351963699,1738863041805,-37481.35197481,0.00014383,5]
[351963846,1738863043158,-500.0,0.00013698,2]
[351963848,1738863043168,-500.0,0.00013698,2]
[351963850,1738863043178,-500.0,0.00013698,2]
[351963852,1738863043188,-500.0,0.00013835,2]
[351963854,1738863043197,-294.22,0.00013972,2]
[351963856,1738863043207,-3409.33700372,0.00014383,5]
[351964124,1738863046057,-500.0,0.00013698,2]
[351964127,1738863046068,-702.57,0.00013698,2]
[351964129,1738863046078,-147.43,0.00013835,2]
[351966419,1738863935141,-162.5078211,0.00012663,2]
[351966420,1738863935165,-408.05890914,0.00012691,2]
[351966421,1738863935187,-376.27925762,0.00012691,2]
[351966422,1738864051107,-25.41944114,0.00012691,2]
[351966423,1738864051128,-300.0,0.00012791,2]
[351966424,1738864051150,-142.09076646,0.00012792,2]
[351966425,1738864054102,-1329.49760283,0.00012792,2]
[351966426,1738864168123,-218.83264858,0.00012591,2]
[351966493,1738864232269,-373.6340715,0.00012116,2]
[351966495,1738864232280,-335.53331201,0.00012116,2]
[351966496,1738864232291,-1035.0500002,0.00012116,2]
[351966500,1738864232323,-291.37338982,0.00012116,2]
[351966504,1738864232380,-10579.64013687,0.00012116,2]
[351966505,1738864232389,-124.42969915,0.00012591,2]
[351966507,1738864232399,-300.0,0.00012791,2]
[351966509,1738864232408,-1880.56035265,0.00012999,2]
[351966526,1738864232596,-22000.0,0.00013,4]
[351966528,1738864232606,-253.17353593,0.0001305,2]
[351966530,1738864232615,-700.0,0.0001315,2]
[351966531,1738864232624,-500.0,0.00013383,2]
[351966533,1738864232634,-500.0,0.00013383,2]
[351966535,1738864232644,-500.0,0.00013383,2]
[351966537,1738864232653,-500.0,0.00013383,2]
[351966539,1738864232663,-500.0,0.00013383,2]
[351966541,1738864232671,-500.0,0.00013383,2]
[351966543,1738864232681,-500.0,0.00013383,2]
[351966544,1738864232690,-500.0,0.00013383,2]
[351966546,1738864232700,-500.0,0.00013383,2]
[351966548,1738864232710,-500.0,0.00013383,2]
[351966550,1738864232719,-500.0,0.00013383,2]
[351966552,1738864232729,-462.39,0.00013383,2]
[351966554,1738864232738,-7438.69753278,0.00013682,2]
[351966556,1738864232747,-446.51464235,0.00013697,2]
[351966558,1738864232756,-500.0,0.00013697,2]
[351966559,1738864232765,-159.5736635,0.00013697,2]
[351966561,1738864232774,-500.0,0.00013697,2]
[351966563,1738864232784,-237.63536218,0.00013697,2]
[351966565,1738864232793,-500.0,0.00013697,2]
[351966567,1738864232802,-500.0,0.00013697,2]
[351966569,1738864232811,-500.0,0.00013697,2]
[351966571,1738864232821,-500.0,0.00013697,2]
[351966573,1738864232831,-500.0,0.00013697,2]
[351966574,1738864232840,-499.99999999,0.00013697,2]
[351966576,1738864232849,-500.0,0.00013697,2]
[351966578,1738864232859,-500.0,0.00013698,2]
[351966580,1738864232868,-500.0,0.00013698,2]
[351966582,1738864232877,-500.0,0.00013698,2]
[351966584,1738864232886,-500.0,0.00013698,2]
[351966586,1738864232895,-500.0,0.00013698,2]
[351966587,1738864232905,-500.0,0.00013698,2]
[351966589,1738864232914,-266.1518056,0.00013698,2]
[351966591,1738864232924,-500.0,0.00013698,2]
[351966593,1738864232933,-500.0,0.00013698,2]
[351966595,1738864232942,-500.0,0.00013698,2]
[351966597,1738864232951,-500.0,0.00013698,2]
[351966599,1738864232961,-516.26,0.00013698,2]
[351966600,1738864232970,-500.0,0.00013698,2]
[351966602,1738864232979,-500.0,0.00013698,2]
[351966604,1738864232988,-500.0,0.00013698,2]
[351966606,1738864233000,-500.0,0.00013698,2]
[351966608,1738864233010,-500.0,0.00013698,2]
[351966610,1738864233020,-500.0,0.00013698,2]
[351966611,1738864233030,-500.0,0.00013698,2]
[351966613,1738864233040,-500.0,0.00013698,2]
[351966615,1738864233051,-501.71054458,0.00013698,2]
[351966617,1738864233061,-500.0,0.00013698,2]
[351966619,1738864233071,-500.0,0.00013698,2]
[351966621,1738864233083,-500.0,0.00013698,2]
[351966623,1738864233093,-500.0,0.00013698,2]
[351966624,1738864233103,-500.0,0.00013698,2]
[351966626,1738864233113,-793.08,0.00013698,2]
[351966628,1738864233123,-500.0,0.00013698,2]
[351966630,1738864233133,-500.0,0.00013698,2]
[351966632,1738864233143,-812.18,0.00013698,2]
[351966634,1738864233153,-500.0,0.00013698,2]
[351966635,1738864233163,-500.0,0.00013698,2]
[351966637,1738864233173,-506.37998842,0.00013698,2]
[351966639,1738864233184,-500.0,0.00013698,2]
[351966641,1738864233194,-568.30179641,0.00013698,2]
[351966643,1738864233205,-500.0,0.00013698,2]
[351966645,1738864233214,-626.46,0.00013698,2]
[351966647,1738864233224,-500.0,0.00013698,2]
[351966648,1738864233233,-730.97,0.00013698,2]
[351966650,1738864233243,-500.0,0.00013698,2]
[351966652,1738864233253,-500.0,0.00013698,2]
[351966654,1738864233263,-505.79290992,0.00013698,2]
[351966656,1738864233273,-500.0,0.00013698,2]
[351966658,1738864233282,-500.0,0.00013698,2]
[351966660,1738864233292,-500.0,0.00013698,2]
[351966661,1738864233302,-500.0,0.00013698,2]
[351966663,1738864233312,-500.0,0.00013698,2]
[351966665,1738864233322,-500.0,0.00013698,2]
[351966667,1738864233334,-500.0,0.00013698,2]
[351966669,1738864233343,-500.0,0.00013698,2]
[351966671,1738864233353,-500.0,0.00013698,2]
[351966673,1738864233362,-500.0,0.00013698,2]
[351966674,1738864233371,-500.0,0.00013698,2]
[351966676,1738864233380,-500.0,0.00013698,2]
[351966678,1738864233390,-500.0,0.00013698,2]
[351966680,1738864233399,-500.0,0.00013698,2]
[351966682,1738864233408,-500.0,0.00013698,2]
[351966684,1738864233418,-768.08,0.00013698,2]
[351966685,1738864233428,-500.0,0.00013698,2]
[351966687,1738864233438,-500.0,0.00013698,2]
[351966689,1738864233447,-500.0,0.00013698,2]
[351966691,1738864233457,-500.0,0.00013698,2]
[351966693,1738864233466,-500.0,0.00013698,2]
[351966695,1738864233476,-500.0,0.00013698,2]
[351966697,1738864233486,-500.0,0.00013698,2]
[351966698,1738864233496,-500.0,0.00013698,2]
[351966700,1738864233505,-500.0,0.00013698,2]
[351966702,1738864233515,-500.0,0.00013698,2]
[351966704,1738864233525,-500.98460817,0.00013698,2]
[351966706,1738864233535,-259.17818765,0.00013698,2]
[351966708,1738864233545,-500.0,0.00013698,2]
[351966710,1738864233554,-637.89,0.00013698,2]
[351966711,1738864233564,-500.0,0.00013698,2]
[351966713,1738864233573,-500.0,0.00013698,2]
[351966715,1738864233588,-448.2476278,0.00013698,2]
[351966717,1738864233598,-500.0,0.00013698,2]
[351966719,1738864233609,-500.0,0.00013698,2]
[351966721,1738864233619,-500.0,0.00013698,2]
[351966723,1738864233628,-500.0,0.00013698,2]
[351966725,1738864233638,-500.0,0.00013698,2]
[351966726,1738864233649,-500.0,0.00013698,2]
[351966728,1738864233659,-500.0,0.00013698,2]
[351966730,1738864233669,-500.0,0.00013698,2]
[351966732,1738864233679,-500.0,0.00013698,2]
[351966734,1738864233689,-500.0,0.00013698,2]
[351966736,1738864233699,-500.0,0.00013698,2]
[351966738,1738864233712,-515.67555218,0.00013698,2]
[351966740,1738864233722,-500.0,0.00013698,2]
[351966742,1738864233732,-629.94877595,0.00013698,2]
[351966743,1738864233741,-500.0,0.00013698,2]
[351966745,1738864233751,-500.0,0.00013698,2]
[351966747,1738864233760,-352.50764116,0.00013698,2]
[351966749,1738864233770,-500.0,0.00013698,2]
[351966751,1738864233780,-500.0,0.00013698,2]
[351966753,1738864233789,-500.0,0.00013698,2]
[351966755,1738864233799,-500.0,0.00013698,2]
[351966757,1738864233809,-500.0,0.00013698,2]
[351966759,1738864233818,-715.54,0.00013698,2]
[351966761,1738864233829,-500.0,0.00013698,2]
[351966763,1738864233838,-500.0,0.00013698,2]
[351966765,1738864233848,-500.0,0.00013698,2]
[351966767,1738864233857,-500.0,0.00013698,2]
[351966769,1738864233866,-500.0,0.00013698,2]
[351966771,1738864233876,-500.0,0.00013698,2]
[351966773,1738864233885,-500.0,0.00013698,2]
[351966775,1738864233894,-504.51737676,0.00013698,2]
[351966777,1738864233903,-500.0,0.00013698,2]
[351966779,1738864233913,-500.0,0.00013698,2]
[351966780,1738864233922,-500.0,0.00013698,2]
[351966782,1738864233932,-500.0,0.00013698,2]
[351966784,1738864233942,-500.0,0.00013698,2]
[351966785,1738864233951,-500.0,0.00013698,2]
[351966786,1738864233961,-500.0,0.00013698,2]
[351966787,1738864233971,-500.0,0.00013698,2]
[351966788,1738864233981,-501.91863737,0.00013698,2]
[351966789,1738864233991,-500.0,0.00013698,2]
[351966790,1738864234004,-500.0,0.00013698,2]
[351966791,1738864234014,-218.42389453,0.00013698,2]
[351966792,1738864234024,-403.07353758,0.00013698,2]
[351966793,1738864234034,-500.0,0.00013698,2]
[351966794,1738864234045,-318.25172612,0.00013698,2]
[351966795,1738864234054,-500.0,0.00013698,2]
[351966796,1738864234064,-500.0,0.00013698,2]
[351966797,1738864234074,-2368.84,0.00013698,2]
[351966798,1738864234085,-500.0,0.00013698,2]
[351966799,1738864234095,-500.0,0.00013698,2]
[351966800,1738864234104,-500.0,0.00013698,2]
[351966801,1738864234114,-500.0,0.00013698,2]
[351966802,1738864234124,-500.0,0.00013698,2]
[351966803,1738864234134,-500.0,0.00013698,2]
[351966804,1738864234144,-500.0,0.00013698,2]
[351966805,1738864234154,-552.52656968,0.00013698,2]
[351966806,1738864234163,-500.0,0.00013698,2]
[351966807,1738864234172,-440.26918304,0.00013698,2]
[351966808,1738864234181,-960.76,0.00013698,2]
[351966809,1738864234191,-500.0,0.00013698,2]
[351966810,1738864234201,-500.0,0.00013698,2]
[351966811,1738864234211,-500.0,0.00013698,2]
[351966812,1738864234222,-500.0,0.00013698,2]
[351966813,1738864234231,-500.0,0.00013698,2]
[351966814,1738864234241,-500.0,0.00013698,2]
[351966815,1738864234252,-500.0,0.00013698,2]
[351966816,1738864234262,-500.0,0.00013698,2]
[351966817,1738864234272,-500.0,0.00013698,2]
[351966818,1738864234282,-500.0,0.00013698,2]
[351966819,1738864234292,-546.14904228,0.00013698,2]
[351966820,1738864234302,-500.0,0.00013698,2]
[351966821,1738864234312,-500.0,0.00013698,2]
[351966823,1738864234322,-500.0,0.00013698,2]
[351966825,1738864234333,-863.94,0.00013698,2]
[351966827,1738864234343,-500.0,0.00013698,2]
[351966828,1738864234352,-500.0,0.00013698,2]
[351966830,1738864234362,-500.0,0.00013698,2]
[351966832,1738864234371,-500.0,0.00013698,2]